Cogmind - Beta 15 @@@ ROGUE MODE // 2025.09.01 @ 20:40:06 Player: JTMusky Result: Destroyed by DU-CCQ(R) with Subdweller Shrapnel Launcher Performance ------------- Evolutions (0) 0 Regions Visited (2) 400 Robots Destroyed (23) 115 Value Destroyed (581) 581 Prototype IDs (2) 40 Alien Tech Used (0) 0 Bonus (0) 0 TOTAL SCORE: 1136 Bonus ------- None Cogmind --------- Core Integrity 0/250 Matter 300/300 Energy 100/100 System Corruption 1% Temperature Cool (1) Movement Core (50) Location -10/Subcaves Parts ------- > --- POWER (1) -------- (None) > --- PROPULSION (2) --- (None) > --- UTILITY (2) ------ Signal Interpreter > --- WEAPON (2) ------- (None) > --- INVENTORY (5) ---- Light Ion Engine Improved Hover Unit Subdweller Optics Recalibrator Mining Laser Peak State ------------ > --- POWER ------------ Light Nuclear Core > --- PROPULSION ------- Light Treads Light Treads > --- UTILITY ---------- Small Storage Unit Machine Analyzer > --- WEAPON ----------- Autogun Autogun > --- INVENTORY -------- Ion Engine Light Ion Engine Wheel Compact Wheel Seismic Detector Medium Laser Autogun Grenade Launcher [Rating: 13] Favorites ----------- Power Light Ion Engine Engine Light Ion Engine Power Core Light Nuclear Core Propulsion Light Treads Treads Light Treads Wheel Compact Wheel Hover Unit Improved Hover Unit Utility Small Storage Unit Device Sensor Array Storage Small Storage Unit Processor Machine Analyzer Weapon Grenade Launcher Energy Gun Medium Laser Ballistic Gun Autogun Launcher Grenade Launcher Special Weapon Mining Laser Impact Weapon Hammer Slashing Weapon Mining Claw Build | -11 -10 -10 ------- Run | Yrd Mat Sub Slots Evolved . | . . . Power . | . . . Propulsion . | . . . Utility . | . . . Weapon . | . . . Parts Attached 26 | 9 17 . Power 4 | 1 3 . Engine 3 | 1 2 . Core 1 | . 1 . Reactor . | . . . Propulsion 6 | 2 4 . Treads 2 | 2 . . Leg . | . . . Wheel 2 | . 2 . Hover 2 | . 2 . Flight . | . . . Utility 5 | 2 3 . Device 2 | 1 1 . Storage 1 | 1 . . Processor 2 | . 2 . Hackware . | . . . Protection . | . . . Artifact . | . . . Weapon 11 | 4 7 . Energy Gun 1 | 1 . . Energy Cannon . | . . . Ballistic Gun 5 | 2 3 . Ballistic Cannon . | . . . Launcher 1 | . 1 . Special Weapon 2 | 1 1 . Impact Weapon 1 | . 1 . Slashing Weapon 1 | . 1 . Piercing Weapon . | . . . Special Melee Weapon . | . . . Unidentified Prototypes . | . . . Parts Lost 10 | . 4 6 Power 3 | . 2 1 Propulsion 3 | . 1 2 Utility 1 | . . 1 Weapon 3 | . 1 2 Highest Loss Streak 6 | . 2 6 To Critical Strikes . | . . . Average Backups 6 | 4 6 4 Power 1 | . 1 1 Propulsion 1 | 3 1 1 Utility . | . 1 1 Weapon 2 | . 3 1 Tool/Special . | . . . Unused Backups 11 | . 6 5 Power 1 | . . 1 Propulsion 5 | . 4 1 Utility 2 | . . 2 Weapon 3 | . 2 1 Tool/Special . | . . . Average Slot Usage (%) 95 | . 95 96 Engine 10 | . 9 13 Core 2 | . 2 . Treads 13 | . 14 . Wheel 2 | . 3 . Hover 10 | . 8 28 Device 8 | . 7 14 Storage 8 | . 8 . Processor 11 | . 11 14 Ballistic Gun 8 | . 9 . Launcher 9 | . 9 13 Special Weapon 6 | . 5 13 Impact Weapon 1 | . 1 . Peak Build Rating 13 | 7 13 10 Average Rating 9 | 5 9 9 On Entrance 5 | . 7 9 Naked Turns . | . . . Heaviest Build 17 | 12 17 8 Greatest Support 40 | 40 40 14 Greatest Overweight (x) 4 | . 4 . Average Overweight (x) . | . . . Largest Inventory Capacity 8 | 8 8 5 Average Capacity 6 | 7 6 5 Most Carried 8 | 7 8 5 Average Carried 6 | 4 6 4 Final Capacity 8 | 8 5 5 Final Carried 7 | 7 4 5 Class Distribution -------------------- 100% | Mutant Dominant Class ---------------- Mutant | -10/Materials Mutant | -10/Subcaves Resources | -11 -10 -10 ----------- Run | Yrd Mat Sub Matter Collected 815 | 253 443 119 Remotely . | . . . Salvage Created 591 | 51 540 . Parts 36 | 6 30 . Haulers Intercepted 1 | . 1 . Recyclers Shooed . | . . . Parts Field Recycled . | . . . Retrieved Matter . | . . . Parts Self-Destructed . | . . . Prevented . | . . . Kills | -11 -10 -10 ------- Run | Yrd Mat Sub Combat Hostiles Destroyed 15 | . 15 . Guns 6 | . 6 . AOE 7 | . 7 . Classes Destroyed 6 | 1 5 . Tunneler 3 | 2 1 . Hauler 1 | . 1 . Mechanic 1 | . 1 . Watcher 3 | . 3 . Swarmer 3 | . 3 . Grunt 12 | . 12 . Best Kill Streak 6 | 2 6 . Combat Bots Only 5 | . 5 . Max Kills in Single Turn 2 | 1 2 . Gunslinging . | . . . Exploded 2 | . 2 . Melee . | . . . Uniques/NPCs Destroyed . | . . . Combat | -11 -10 -10 -------- Run | Yrd Mat Sub Hostile Shots Fired 83 | . 73 10 Missed 17 | . 13 4 Hits 66 | . 60 6 Projectile 66 | . 60 6 AOE 5 | . . 5 Damage Taken 1050 | . 742 308 Core 266 | . 128 138 Absorbed by Shields . | . . . Core Remaining (%) 100 | 100 . . Volleys Fired 87 | 3 83 1 Largest 2 | 2 2 1 Hottest 100 | 70 100 100 Shots Fired 107 | 6 100 1 Gun 64 | 6 58 . Cannon . | . . . Launcher 15 | . 15 . Special 28 | . 27 1 Kinetic 61 | 3 58 . Thermal 31 | 3 27 1 Explosive 15 | . 15 . Electromagnetic . | . . . Robot Hit Streak 11 | 1 11 . Robot Miss Streak 5 | 1 5 . Penetration Max . | . . . Secondary Targets 1 | . 1 . Max Gunslinging Chain 1 | . 1 . Shots Hit Robots 62 | 3 59 . Core Hits 39 | 4 35 . Critical Kills . | . . . Critical Parts Destroyed 2 | . 2 . Critical Strikes 2 | . 2 . Destroy 1 | . 1 . Smash 1 | . 1 . Melee Attacks 22 | . 22 . Impact 16 | . 16 . Slashing 6 | . 6 . Piercing . | . . . Sneak Attacks . | . . . Combat Hostiles . | . . . Follow-up Attacks 2 | . 2 . Damage Inflicted 1611 | 42 1569 . Guns 612 | 33 579 . Cannons . | . . . Explosions 598 | . 598 . Melee 388 | . 388 . Ramming 13 | 9 4 . Kinetic 599 | 20 579 . Thermal 13 | 13 . . Explosive 598 | . 598 . Electromagnetic . | . . . Impact 293 | . 293 . Slashing 95 | . 95 . Piercing . | . . . Highest Corruption 1 | . 1 1 Average Corruption 1 | . 1 1 Corruption Purged . | . . . Corruption Blocked . | . . . Effects 3 | . 2 1 Message Errors 2 | . 1 1 Data Loss (minor) 1 | . 1 . Overload Shots . | . . . Overflow Damage 85 | . 85 . Projectiles . | . . . Explosions 27 | . 27 . Melee 58 | . 58 . Knockbacks 3 | . 3 . Impact 3 | . 3 . Kinetic . | . . . Secondary . | . . . Self-Inflicted Damage 14 | . 14 . Shots 1 | . 1 . Rammed 11 | 8 3 . Targets Rammed 11 | 8 3 . Kicked . | . . . Crushed . | . . . Highest Temperature 210 | 18 210 . Average Temperature 49 | 9 51 . Received Heat Transfer 405 | . 387 18 Siege Activations . | . . . Martial Activations . | . . . Shielding Activations . | . . . Robots Disrupted . | . . . Combat Hostiles . | . . . Robots Corrupted 2 | . 2 . Combat Hostiles 2 | . 2 . Parts Fried . | . . . Impact Corruptions 3 | . 3 . Robots Melted . | . . . Combat Hostiles . | . . . Parts Melted . | . . . Heat Transferred 37 | 37 . . Parts Sabotaged . | . . . Parts Stolen . | . . . Parts Stripped . | . . . Power Chain Reactions . | . . . Alert | -11 -10 -10 ------- Run | Yrd Mat Sub Maximum Alert Level . | . . . Low Security (%) 100 | 100 100 . Level 1 . | . . . Level 2 . | . . . Level 3 . | . . . Level 4 . | . . . Level 5 . | . . . High Security . | . . . Max Security . | . . . Peak Influence 182 | 5 182 . Initial . | . . . Average 60 | . 67 . Influence Increases 555 | 10 545 . Destroy 0b10 Robot/C 300 | . 300 . Destroy 0b10 Robot/NC 40 | 10 30 . Destroy Leader 68 | . 68 . Successful Hack 11 | . 11 . Disable Machine 30 | . 30 . Destroy Structure 106 | . 106 . Influence Decreases 555 | 10 441 104 Entered New Map 51 | . . 51 Time Decay 464 | 10 401 53 Lost Part 40 | . 40 . Squads Dispatched 2 | . 2 . Investigation 1 | . 1 . Extermination . | . . . Reinforcement 1 | . 1 . Assault . | . . . Garrison . | . . . Intercept . | . . . Searches Triggered . | . . . Construction Impeded . | . . . Haulers Reinforced . | . . . Active Scanning Responses . | . . . Cargo Convoy Interrupts . | . . . Stealth | -11 -10 -10 --------- Run | Yrd Mat Sub Distress Signals . | . . . Communications Jammed . | . . . Distress Signals . | . . . Times Spotted 26 | . 22 4 Peak Tracking Total 4 | . 4 3 Tactical Retreats 1 | . . 1 Traps | -11 -10 -10 ------- Run | Yrd Mat Sub Traps Triggered 1 | . 1 . Indirectly . | . . . Trap Hack Attempts . | . . . Triggered . | . . . Disarmed . | . . . Reprogrammed . | . . . Reused . | . . . Traps Extracted . | . . . Installed . | . . . Triggered . | . . . Machines | -11 -10 -10 ---------- Run | Yrd Mat Sub Machines Disabled 2 | . 2 . Max in Single Turn 1 | . 1 . Machines Repaired . | . . . Machines Dismantled . | . . . Machines Sabotaged . | . . . Overloaded Fab Kills . | . . . Hacking | -11 -10 -10 --------- Run | Yrd Mat Sub Machines Accessed 8 | . 8 . Terminals 7 | . 7 . Fabricators . | . . . Repair Stations . | . . . Recycling Units 1 | . 1 . Scanalyzers . | . . . Garrison Access . | . . . Total Hacks 23 | . 23 . Successful 10 | . 10 . Failed 13 | . 13 . Catastrophic . | . . . Database Lockouts . | . . . Manual . | . . . Terminals 21 | . 21 . Fabricators . | . . . Repair Stations . | . . . Recycling Units 2 | . 2 . Scanalyzers . | . . . Garrison Access . | . . . Terminal Hacks 10 | . 10 . Prototype ID Bank 1 | . 1 . Alert Level 1 | . 1 . Locate Traps 2 | . 2 . Dispatch Records 1 | . 1 . Maintenance Status 1 | . 1 . Transport Status 1 | . 1 . Hauler Manifests 1 | . 1 . Zone Layout 2 | . 2 . Fabricator Hacks . | . . . Repair Station Hacks . | . . . Recycling Unit Hacks . | . . . Scanalyzer . | . . . Garrison Access Hacks . | . . . Unauthorized Hacks . | . . . Terminals . | . . . Fabricators . | . . . Repair Stations . | . . . Recycling Units . | . . . Scanalyzers . | . . . Garrison Access . | . . . Data Cores Recovered . | . . . Used . | . . . Hacking Detections 5 | . 5 . Full Trace Events 1 | . 1 . Feedback Events . | . . . Feedback Blocked . | . . . Robot Schematics Acquired . | . . . Robots Built . | . . . Authchips . | . . . Time . | . . . Total Robot Build Rating . | . . . Part Schematics Acquired . | . . . Parts Built . | . . . Authchips . | . . . Time . | . . . Total Part Build Rating . | . . . Parts Repaired . | . . . Time . | . . . Parts Recycled . | . . . Recycled Matter . | . . . Retrieved Matter . | . . . Retrieved Components . | . . . Parts Scanalyzed . | . . . Part Schematics Acquired . | . . . Parts Damaged . | . . . Bothacking | -11 -10 -10 ------------ Run | Yrd Mat Sub Used RIF Installer . | . . . Robots Hacked . | . . . Non-combat . | . . . Combat . | . . . Robot Hacks Applied . | . . . Relay Couplers Released . | . . . Fabnet Peak Effective % . | . . . Robots Rewired . | . . . Allies Hacked . | . . . Hacks Repelled . | . . . Allies | -11 -10 -10 -------- Run | Yrd Mat Sub Total Allies . | . . . Largest Group . | . . . Highest-Rated Group . | . . . Highest-Rated Ally . | . . . Total Orders . | . . . Ally Attacks . | . . . Total Damage . | . . . Kills . | . . . Allies Corrupted . | . . . Allies Melted . | . . . Intel | -11 -10 -10 ------- Run | Yrd Mat Sub Active Infowar (turns) 1471 | 34 1306 131 Sensors 605 | . 474 131 Seismic 256 | 34 222 . Machine Analysis 819 | . 819 . Robot Analysis Total . | . . . Derelict Logs Recovered . | . . . Drone Launches . | . . . Drone Recoveries . | . . . Exploration | -11 -10 -10 ------------- Run | Yrd Mat Sub Turns Passed 1584 | 143 1308 133 Spaces Moved 1190 | 73 923 194 Core 14 | 13 1 . Treads 377 | 60 317 . Legs . | . . . Wheels 123 | . 123 . Hover 676 | . 482 194 Flight . | . . . Fastest Speed 50 | 50 56 56 Average Speed 95 | 140 100 56 Slowest Speed 250 | 160 250 60 Overloaded Moves . | . . . Propulsion Burnouts . | . . . Robots Hopped . | . . . Potential Cave-ins . | . . . Cave-ins Triggered . | . . . Exploration Rate (%) 37 | 4 95 12 Regions Visited 2 Branch Regions 1 Pre-discovered Areas . | . . . Known Exits Taken 1 | . 1 . Unknown Exits Taken 1 | 1 . . Scrap Searched . | . . . Spaces Dug 27 | . 27 . Terrain Destroyed 111 | . 111 . Melee . | . . . Projectile 27 | . 27 . AOE 84 | . 84 . Terrain Rammed . | . . . Walls Destroyed . | . . . Machines Disabled . | . . . Actions | -11 -10 -10 --------- Run | Yrd Mat Sub Total 1436 | 98 1123 215 Wait 57 | . 38 19 Move 1188 | 72 922 194 Hop . | . . . Pick Up 19 | 6 12 1 Fast Attach 17 | 7 10 . Attach 2 | . 2 . Detach 3 | . 3 . Swap 12 | 2 10 . Drop 20 | . 20 . Fire 87 | 3 83 1 Melee 20 | . 20 . Ram . | . . . Kick . | . . . Crush 11 | 8 3 . Escape Stasis . | . . . Rewire . | . . . Trap . | . . . Miscellaneous . | . . . Route ------- -11/Scrapyard -10/Materials (discovered 5 exits: *Mat x3 / *Min / *Sub) -10/Subcaves History --------- Turn | Location | Event 2 | -11/Scrapyard | Met Revision 17 14 | -11/Scrapyard | Discovered new exit (range 15) 144 | -11/Scrapyard | Entered Materials 257 | -10/Materials | Discovered new exit (range 12) 316 | -10/Materials | Build established: Mutant 502 | -10/Materials | Discovered new exit (range 11) 770 | -10/Materials | Discovered new exit (range 14) 982 | -10/Materials | Core integrity fell below 50% 998 | -10/Materials | Discovered new exit (range 14) 1062 | -10/Materials | Discovered new exit (range 4) 1193 | -10/Materials | Identified exit to Materials 1220 | -10/Materials | Identified exit to Mines 1409 | -10/Materials | Identified exit to Subcaves 1452 | -10/Materials | Entered Subcaves 1453 | -10/Subcaves | Approached by a straggling Scientist 1459 | -10/Subcaves | A swath of the cavern ceiling suddenly collapsed 1494 | -10/Subcaves | Shifting Twisted Machinery released Sub. Optics 1495 | -10/Subcaves | Shifting Twisted Machinery released Sub. Beam Cannon 1584 | -10/Subcaves | Core integrity fell below 20% 1585 | -10/Subcaves | Destroyed by DU-CCQ(R) with Subdweller Shrapnel Launcher Last Messages --------------- 01488_ RC-S82(R): "OHNO!" Sub. Optics falls loose from the Twisted Machinery. Sub. Beam Cannon falls loose from the Twisted Machinery. 01495_ Acquired 11 matter. 01496_ Acquired 10 matter. 01498_ Acquired Sub. Optics. 01500_ Acquired 11 matter. 01502_ Acquired 6 matter. 3O-3O1(c): "I think it's somewhere north of here" 01504_ Acquired 7 matter. 01508_ Acquired 8 matter. 01508_ 0A-2B7(u) builds Twisted Machinery. 01516_ Acquired 14 matter. 01577_ Grenade Launcher destroyed. 01579_ Lgt. Ion Engine destroyed. 01579_ Mining Laser destroyed. 01581_ Imp. Hover Unit destroyed. 01583_ Sensor Array destroyed. 01585_ Imp. Hover Unit destroyed. Map ----- +----------------------------------------------------+ | ????????????????????# ????????????????????????? | | ????????????????????# ????????????????????????? | | ???????????????????## ##???????????????????????? | | ???????????????????# #???????????????????????? | | ???????????????????# ????????????????????????? | | ????????????????????# ????????????????????????? | | ????????????????????## ?##########?????????????? | | ????????????????????# ### ## ##????????????? | | ????????????????????#### #????????????? | | ????????????????????## ### #????????????? | | ???????????????????## # #????????????? | | ???????????????????# # ### ### ## #????????????? | | ???????????????????### ###????????????? | | ????????????????????# ## ##??????????????? | | ????????????????????# ### ## ##??????????????? | | ????????????????????# ### # #??????????????? | | ????????????????????# ## # #???????????????? | | ????????????????????## #### #???????????????? | | ?????????????????????# #?## ##????? ????????? | | ?????????????????????# ### ##??? ????????? | | ?????????????????????## ## ## ???????? | | ??????????????????????## #????????? | | ???????????????????????# #?????????? | | ????????????????######### #?????????? | | ???????????????## # % ##??????????? | | ???????????????# ;@;# #???????????? | | ???????????????# ;### #??????????? | | ???????????????#; ;#?? ##??????????? | | ??##??????????## ;#??? #???????????? | | ??# #????????## ;#???? " #???????????? | | ?## ?????#### ;;;;#????? """ #??????????? | | """""###### ;; R ; ##????????"????????????? | | """"" ## ; ; #####??????????????????????? | | """"" ###???????????????????????????? | | """"" # ;; ##?????????????????????????????? | | ##### ## ;; #??????????????????????????????? | | ???## ## ## #??????????????????????????????? | | ??## " ! #??????????????????????????????? | | ### """"% #??????????????????????????????? | | " "" " ## ##??????????????????????????????? | | " ""]" ####???????????????????????????????? | | """" #??????????????????????????????????? | | " ##??????????????????????????????????? | | "" #???????????????????????????????????? | | """ #???????????????????????????????????? | | """"" #???????????????????????????????????? | | """ #???????????????????????????????????? | | #### ##???????????????????????????????????? | | ##??? #????????????????????????????????????? | | #????? ##????????????????????????????????????? | +----------------------------------------------------+ Best States ------------- Heat Dissipation 25 Energy Generation 14 Energy Capacity 250 Matter Stores 300 Matter Capacity 300 Sight Range 16 Robot Scan Range 14 Terrain Scan Density 10 Evasion (%) 53 Recoil Reduction 2 Item Schematics ----------------- None Robot Schematics ------------------ None Fabricated ------------ Nothing Repaired ---------- Nothing Alien Tech Used ----------------- None Achievements -------------- None Challenges ------------ None Game ------ Seed CooledOmegaDoublenader Manual? 0 Play Time 00:33:38 Cumulative 39.6 hours Start 2025.09.01 @ 20:08:34 End 2025.09.01 @ 20:40:06 Sessions 1 Manual Loads 0 Difficulty Rogue Special Mode None Game No. 53 Rogue 53 Adventurer 0 Explorer 0 Win Type - Total 0 Types 0/0/0/0/0/0/0/0/0/0 Lore% 14 Gallery% 17 Achievement% 19 Wizard Run 0 Options --------- Layout 2 ASCII 1 Keyboard 1 Movement Vi Keybinds 1 Fullscreen 2 Font 20/SmallcapsGlow Map View 56x54 Zoom Use 94% Tactical HUD 1 Map Filters NONE Filters NONE Steam 0 RUN: 6a96c6b5-0b52-43fe-8c38-d9bf5f2402e8